Workbook

Sheet MUESTREO
B2: POBLACIÓN Y MUESTRA
D3: Ing. Geoconda Muñoz
A7: INGRESAR LA INFORMACION SOLO , EN LAS CELDAS DE COLOR VERDE
C9: CALCULO DEL TAMAÑO DE LA MUESTRA
A11: Items | B11: DATOS: | C11: Valores | R11: 100,000.00
A12: Poblacion | B12: N = | C12: 10,000
B13: Nivel confianza =
A14: Z critico | B14: Zc = | C14: 1.96 | E14: Tamaño de la muestra: | I14: =IF(C12>=100000,T17,R17) -> 370 | J14: muestras | R14: menos de 100000 | T14: mas de 100000
A15: error | B15: e = | C15: 0.05 | R15: =+PRODUCT(C14,C14,C12,C16,(1-C16)) -> 9,604.00 | T15: =+PRODUCT(C14,C14,C16,(1-C16)) -> 0.96
A16: porcion exitos | B16: p = | C16: 0.50 | R16: =+PRODUCT(C15,C15,C12)+PRODUCT(C14,C14,C16,(1-C16)) -> 25.96 | T16: =+PRODUCT(C15,C15) -> 0.00250
R17: =+R15/R16 -> 369.95 | T17: =+T15/T16 -> 384.16
A18: Nivel confianza = | B18: 70% | C18: =+B18+0.05 -> 75% | D18: =+C18+0.05 -> 80% | E18: =+D18+0.05 -> 85% | F18: =+E18+0.05 -> 90% | G18: =+F18+0.01 -> 91% | H18: =+G18+0.01 -> 92% | I18: 93% | J18: 94% | K18: 95% | L18: 96% | M18: 97% | N18: 98% | O18: =+N18+0.01 -> 99%
A19: Zc = | B19: 1.04 | C19: 1.15 | D19: 1.28 | E19: 1.44 | F19: 1.65 | G19: 1.70 | H19: 1.75 | I19: 1.81 | J19: 1.88 | K19: 1.96 | L19: 2.05 | M19: 2.16 | N19: 2.33 | O19: 2.58

Sheet Hoja2

Sheet Hoja3
